bitfinex-derivatives/quotes_ETHF0:USTF0_20260303
["timestamp","ask_amount","ask_price","bid_price","bid_amount"]
[1772581204541,2.31392838,1987.3,1986.5,2.1828719]
[1772581204738,2.31392838,1987.3,1986.6,2.1828719]
[1772581206942,2.31392838,1987.6,1986.8,2.1828719]
[1772581212149,8.66562299,1987.9,1986.8,2.1828719]
[1772581212449,2.31392838,1987.7,1986.8,2.1828719]
[1772581214048,2.31392838,1987.7,1986.9,0.25166]
[1772581214254,2.31392838,1987.7,1987.1,2.1828719]
[1772581217551,2.31392838,1987.7,1986.9,2.4345319]
[1772581217750,2.31392838,1987.7,1987.1,2.1828719]
[1772581226758,2.31392838,1987.7,1987.3,2.18338251]
[1772581227354,2.16924433,1987.8,1987.3,2.18338251]
[1772581230358,2.17286732,1987.9,1987.3,2.18338251]
[1772581230561,2.17286732,1987.9,1987.5,2.18338251]
[1772581230761,2.17286732,1987.9,1987.5,2.18796535]
[1772581231462,0.00362299,1987.9,1987.5,2.18796535]
[1772581232156,2.16924433,1988.1,1987.5,2.18796535]
[1772581232360,2.16924433,1988.0,1987.5,2.18796535]
[1772581233261,2.1733182,1988.0,1987.5,2.18796535]
[1772581240965,0.00407387,1988.0,1987.5,2.18796535]
[1772581242471,2.16924433,1988.4,1987.7,2.18338251]
[1772581242667,2.16924433,1988.4,1987.9,2.18338251]
[1772581243561,2.17533843,1988.4,1987.9,2.18338251]
[1772581244871,2.16924433,1988.1,1987.8,6.44420683]
[1772581247969,2.16924433,1988.1,1987.6,2.18338251]
[1772581248468,2.25706575,1987.9,1987.5,0.00458284]
[1772581248972,2.25706575,1987.9,1987.3,2.22647902]
[1772581249271,2.25706575,1987.9,1987.3,10.99047902]
[1772581249973,2.25706575,1987.9,1987.3,10.99602383]
[1772581250972,2.25706575,1987.9,1987.4,2.22647902]
[1772581251772,2.25706575,1988.1,1987.4,2.22647902]
[1772581253978,2.25706575,1988.1,1987.5,11.00547902]
[1772581254172,2.25706575,1988.1,1987.6,2.22647902]
[1772581254476,2.25706575,1988.3,1987.6,2.22647902]
[1772581254676,2.25706575,1988.1,1987.6,2.22647902]
[1772581255069,1.82330208,1988.0,1987.5,8.779]
[1772581255273,2.25706575,1987.9,1987.6,2.22647902]
[1772581258181,6.49478586,1989.5,1988.0,6.18753]
[1772581258378,2.27753976,1989.5,1988.7,1.82330208]
[1772581258682,0.25126,1990.1,1988.8,12.98357345]
[1772581258683,2.27996083,1989.3,1988.8,12.98357345]
[1772581258982,2.27996083,1989.1,1988.6,4.18957345]
[1772581259177,2.28599363,1989.1,1988.6,4.19333908]
[1772581259383,2.27996083,1988.9,1988.6,0.00376563]
[1772581259881,2.27996083,1988.9,1988.6,5.15554924]
[1772581260581,2.27996083,1988.9,1988.6,0.96597579]
[1772581261177,0.0060328,1989.1,1988.6,0.96597579]
[1772581261384,2.25706575,1989.5,1988.8,1.04941218]
[1772581261579,2.25706575,1989.7,1989.2,1.04424197]
[1772581262075,2.25706575,1989.9,1989.2,1.04424197]
[1772581262277,6.4804767,1989.9,1989.2,1.04424197]
[1772581262474,3.53251313,1989.8,1989.4,1.04711946]
[1772581262678,3.53251313,1989.8,1989.5,1.04711946]
[1772581262875,3.52793019,1989.8,1989.5,1.04711946]
[1772581263985,5.78499594,1989.8,1989.5,1.04711946]
[1772581264888,3.52793019,1989.8,1989.5,1.04711946]
[1772581265086,3.52793019,1989.9,1989.5,1.04711946]
[1772581265282,2.25706575,1990.1,1989.5,1.04711946]
[1772581265685,2.25706575,1990.5,1989.5,1.04711946]
[1772581265890,2.25706575,1990.3,1989.5,1.04711946]
[1772581266186,2.26130867,1990.3,1989.5,1.04711946]
[1772581266383,2.25706575,1990.0,1989.4,9.86916744]
[1772581266582,2.25706575,1990.0,1989.5,1.02985872]
[1772581266784,5.78499594,1990.0,1989.5,1.02985872]
[1772581268580,3.52793019,1990.0,1989.5,1.02985872]
[1772581268980,6.07181315,1990.0,1989.5,1.02985872]
[1772581269591,3.52793019,1990.0,1989.5,1.02985872]
[1772581269786,2.54388296,1990.1,1989.7,0.99216528]
[1772581269991,3.52648033,1990.0,1989.7,0.99216528]
[1772581271588,3.52648033,1990.0,1989.6,0.25132]
[1772581271589,2.54388296,1989.9,1989.6,0.25132]
[1772581271789,2.54388296,1989.9,1989.5,9.84493994]
[1772581271992,2.54388296,1989.8,1989.5,8.868]
[1772581272785,2.54388296,1989.6,1989.2,9.8576798]
[1772581272985,2.54388296,1989.6,1989.2,8.874]
[1772581273188,6.76112906,1989.6,1989.2,8.874]
[1772581273489,6.07181315,1989.5,1989.2,8.874]
[1772581273684,2.54388296,1989.5,1989.2,8.874]
[1772581274986,2.54388296,1989.5,1989.2,9.84334137]
[1772581275292,10.28905925,1989.5,1989.2,8.874]
[1772581275488,2.54388296,1989.4,1989.2,8.874]
[1772581275792,2.54388296,1989.3,1988.9,9.85823253]
[1772581275992,2.54388296,1989.2,1988.7,0.96414277]
[1772581277491,2.54388296,1989.1,1988.7,0.96414277]
[1772581278091,6.25121641,1989.3,1988.7,0.96414277]
[1772581278287,2.72328622,1989.1,1988.6,9.14619563]
[1772581278491,6.25121641,1989.3,1988.7,1.32892085]
[1772581278687,6.94053232,1989.2,1988.7,1.32892085]
[1772581279089,6.17270954,1989.3,1988.7,1.32892085]
[1772581279295,10.38995564,1989.3,1988.7,1.32892085]
[1772581279590,2.90123478,1990.2,1988.8,0.25142]
[1772581279895,2.90123478,1989.9,1988.8,0.25142]
[1772581280096,2.90123478,1989.9,1988.8,9.16542]
[1772581280292,2.90123478,1989.5,1988.8,9.16542]
[1772581280798,2.89998856,1989.3,1988.9,0.23722758]
[1772581281289,2.89998856,1989.2,1988.9,0.23722758]
[1772581281796,7.11723466,1989.2,1988.9,0.23722758]
[1772581282695,2.89998856,1989.2,1988.9,0.23722758]
[1772581282896,4.2172461,1989.1,1988.9,0.23722758]
[1772581283096,4.0979001,1989.1,1988.9,0.23722758]
[1772581283297,2.89562848,1990.2,1989.1,0.23376517]
[1772581285298,2.89562848,1990.2,1989.2,0.50813739]
[1772581286400,2.89562848,1990.2,1989.2,4.67076963]
[1772581286800,2.89562848,1990.2,1989.3,4.65350055]
[1772581287093,2.89562848,1990.2,1989.4,0.49086831]
[1772581287299,2.89562848,1990.2,1989.4,4.65350055]
[1772581289301,2.89562848,1990.2,1989.5,0.45945751]
[1772581289501,2.89562848,1990.2,1989.6,0.45932566]
[1772581289702,2.89562848,1990.2,1989.6,4.6219579]
[1772581290603,2.89562848,1990.2,1989.6,4.16263224]
[1772581290804,2.89562848,1990.2,1989.5,4.16263224]
[1772581293511,2.89562848,1990.2,1989.4,6.45886815]
[1772581294111,2.89562848,1990.2,1989.4,0.25134]
[1772581294311,2.89562848,1990.2,1989.4,3.05376636]
[1772581294511,2.89562848,1990.2,1989.4,0.25134]
[1772581294708,2.89562848,1990.2,1989.3,2.80242636]
[1772581294915,2.64477935,1990.0,1989.0,6.20752815]
[1772581295214,2.64477935,1990.0,1988.9,6.20752815]
[1772581295412,2.64477935,1990.0,1988.8,11.78342636]
[1772581295413,2.64477935,1990.0,1988.8,17.99095451]
[1772581295716,2.64902227,1990.3,1989.8,9.00995451]
[1772581295915,0.00424292,1990.3,1989.9,2.80242636]
[1772581296211,2.64477935,1990.4,1989.9,2.80242636]
[1772581296406,2.64477935,1991.0,1989.9,2.80242636]
[1772581297013,2.64923122,1991.0,1989.9,2.80242636]
[1772581300315,2.64923122,1991.0,1990.0,2.80242636]
[1772581300609,2.64923122,1991.0,1990.0,2.80598632]
[1772581302412,2.64923122,1991.0,1990.1,2.80242636]
[1772581304214,0.00445187,1991.0,1990.1,2.80242636]
[1772581304414,2.64477935,1992.3,1991.5,2.10642636]
[1772581304610,2.64477935,1992.8,1991.7,2.80242636]
[1772581304819,2.64477935,1992.8,1991.9,2.80242636]
[1772581305420,2.64859183,1992.8,1991.9,2.80703218]
[1772581307316,2.64859183,1992.8,1991.9,0.00460582]
[1772581309525,2.89952183,1992.8,1991.9,0.00460582]
[1772581310013,2.89952183,1992.8,1991.7,3.08338517]
[1772581310420,2.89952183,1992.8,1991.4,3.08338517]
[1772581311123,2.89952183,1992.8,1991.4,3.08914802]
[1772581311324,3.12794465,1992.5,1991.4,3.08914802]
[1772581313117,3.12794465,1992.3,1991.0,3.08338517]
[1772581313423,3.12794465,1992.1,1991.0,3.08338517]
[1772581314122,3.12794465,1992.1,1991.0,3.08731523]
[1772581316024,3.12794465,1991.9,1991.0,3.08731523]
[1772581316628,3.12794465,1991.8,1991.0,3.08731523]
[1772581318524,3.12794465,1991.8,1991.0,0.00393006]
[1772581320329,3.12794465,1991.4,1990.3,3.08338517]
[1772581320527,3.12794465,1991.2,1990.3,3.08338517]
[1772581321232,3.13315441,1991.2,1990.3,3.08857066]
[1772581322234,3.13315441,1991.2,1990.3,0.00518549]
[1772581322436,3.12794465,1991.0,1990.3,0.00518549]
[1772581325837,3.12794465,1991.0,1989.9,3.08338517]
[1772581326037,16.59696465,1992.3,1991.4,3.08338517]
[1772581326038,4.15948808,1992.2,1991.4,3.08338517]
[1772581326235,3.12794465,1992.6,1991.4,3.08338517]
[1772581326432,3.12794465,1992.6,1991.6,3.08338517]
[1772581327132,11.90794465,1992.5,1991.6,3.08791242]
[1772581329639,8.793,1992.4,1991.6,3.08791242]
[1772581330140,3.12794465,1992.5,1991.6,3.08791242]
[1772581331337,11.92694465,1992.5,1991.6,3.08791242]
[1772581332034,3.12794465,1992.4,1991.6,3.08791242]
[1772581337646,3.12794465,1992.2,1991.6,3.08791242]
[1772581338641,3.12794465,1992.2,1991.6,0.00452725]
[1772581342350,3.12794465,1992.2,1991.4,2.97551553]
[1772581343054,3.27338584,1992.0,1991.1,3.27130508]
[1772581343442,3.27338584,1992.0,1991.1,3.27618889]
[1772581344955,3.27338584,1992.0,1991.1,0.00488381]
[1772581347754,3.27338584,1991.8,1991.1,0.00488381]
[1772581347954,3.27338584,1991.6,1990.9,3.27130508]
[1772581348950,3.27338584,1992.2,1990.9,3.27605114]
[1772581349152,3.27338584,1992.0,1990.9,3.27605114]
[1772581351555,3.27338584,1991.8,1990.9,3.27605114]
[1772581351955,3.27338584,1991.6,1991.1,3.27130508]
[1772581352551,12.08938584,1991.6,1991.1,3.27130508]
[1772581355453,3.27338584,1991.5,1991.1,3.27130508]
[1772581359953,12.08738584,1991.5,1991.1,3.27130508]
[1772581360657,3.27338584,1992.2,1991.1,3.27130508]
[1772581360855,7.13463579,1992.3,1991.3,3.27130508]
[1772581360856,3.27338584,1992.0,1991.3,3.27130508]
[1772581363764,8.813,1991.9,1991.3,3.27130508]
[1772581364159,8.813,1991.9,1991.5,3.27130508]
[1772581364972,3.27338584,1992.0,1991.5,3.27130508]
[1772581365266,0.00392952,1992.6,1991.5,3.27130508]
[1772581365472,3.27338584,1992.3,1991.5,3.27130508]
[1772581367966,3.27338584,1992.3,1991.7,3.16399782]
[1772581370276,3.27338584,1992.3,1991.5,7.31509276]
[1772581370477,3.27338584,1992.3,1991.6,3.16399782]
[1772581371972,8.81,1992.2,1991.6,3.16399782]
[1772581372378,11.87285013,1992.2,1991.6,3.16399782]
[1772581372877,3.06285013,1992.1,1991.6,3.16399782]
[1772581375778,11.87185013,1992.0,1991.6,3.16399782]
[1772581377777,3.06285013,1991.9,1991.5,4.15109494]
[1772581377977,3.06285013,1991.9,1991.4,3.16399782]
[1772581378177,3.06285013,1991.9,1991.3,3.16399782]
[1772581378379,8.808,1991.8,1991.3,3.16399782]
[1772581378580,3.06285013,1991.7,1991.3,3.16399782]
[1772581378781,11.87085013,1991.8,1991.3,3.16399782]
[1772581380081,3.06285013,1991.8,1991.3,3.16399782]
[1772581380284,8.807,1991.7,1991.3,3.16399782]
[1772581381477,11.86985013,1991.7,1991.3,3.16399782]
[1772581382181,3.06285013,1991.6,1991.1,4.16180131]
[1772581382388,3.06285013,1991.6,1991.1,3.16399782]
[1772581387202,3.06285013,1992.4,1991.3,3.16399782]
[1772581387389,3.06285013,1991.9,1991.3,3.16399782]
[1772581387701,3.06285013,1991.7,1991.3,3.16399782]
[1772581387995,11.87685013,1991.6,1991.3,3.16399782]
[1772581388697,3.06285013,1991.5,1991.2,0.25112]
[1772581388892,3.06285013,1991.5,1991.1,3.16399782]
[1772581391903,3.06285013,1991.5,1991.2,3.16399782]
[1772581392294,11.87685013,1991.6,1991.2,3.16399782]
[1772581392496,3.06285013,1992.1,1991.2,3.16399782]
[1772581392694,3.06285013,1991.9,1991.2,3.16399782]
[1772581395202,8.818,1991.8,1991.3,3.16399782]
[1772581395401,3.06285013,1991.8,1991.3,3.16399782]
[1772581395602,8.818,1991.7,1991.3,3.16399782]
[1772581396503,3.06285013,1991.8,1991.3,3.16399782]
[1772581396803,11.87985013,1991.8,1991.3,3.16399782]
[1772581398203,2.74529914,1991.7,1991.3,3.16399782]
[1772581401403,8.816,1991.7,1991.3,3.16399782]
[1772581401706,2.75198135,1991.6,1991.3,3.16399782]
[1772581402404,2.75198135,1991.6,1991.2,7.04794326]
[1772581403001,2.75198135,1991.6,1990.6,10.40450329]
[1772581403002,0.649,1991.5,1990.6,10.40450329]
[1772581403206,0.25119,1990.6,1989.5,2.9518118]
[1772581403406,1.81575864,1990.1,1989.1,2.9518118]
[1772581403605,0.00088681,1989.9,1989.1,2.9518118]
[1772581403905,2.75198135,1990.2,1989.3,2.95126952]
[1772581404206,2.75775974,1990.2,1989.5,2.95126952]
[1772581404409,10.55385662,1990.1,1989.5,2.95126952]
[1772581404604,10.55385662,1990.0,1989.5,2.95126952]
[1772581404803,2.75198135,1990.1,1989.7,3.13301108]
[1772581405402,0.00577839,1990.2,1989.9,3.48101108]
[1772581405612,6.58133266,1990.2,1989.9,3.48101108]
[1772581405906,6.58133266,1990.2,1989.9,7.26673973]
[1772581406110,11.57298135,1990.3,1989.9,3.48101108]
[1772581406406,11.57298135,1990.3,1989.9,18.69439655]
[1772581406609,11.57680619,1990.3,1989.9,18.69439655]
[1772581408907,8.82482484,1990.3,1990.0,3.52758753]
[1772581409107,0.00382484,1990.3,1990.0,3.52758753]
[1772581409501,0.00382484,1990.3,1990.2,3.52758753]
[1772581409899,0.00382484,1990.3,1990.2,7.31331618]
[1772581412404,0.00382484,1990.3,1990.2,22.52670165]
[1772581412607,2.75198135,1990.7,1990.3,3.48241369]
[1772581412812,2.75198135,1990.7,1990.0,4.94913978]
[1772581413612,2.75605441,1990.7,1990.2,4.94831366]
[1772581414916,0.36830594,1990.6,1990.2,4.94831366]
[1772581415314,0.36830594,1990.6,1989.8,4.86353827]
[1772581415618,0.36830594,1990.6,1990.0,4.86353827]
[1772581416011,4.57393011,1990.6,1990.0,4.86353827]
[1772581416211,0.35106657,1990.5,1990.0,4.86353827]
[1772581416712,0.33796584,1990.5,1990.2,4.86011006]
[1772581416917,4.54766307,1990.7,1990.3,4.86011006]
[1772581417112,4.20969723,1990.7,1990.4,4.86011006]
[1772581417316,0.00407306,1990.7,1990.4,4.86011006]
[1772581417518,7.91826811,1990.7,1990.5,4.85942923]
[1772581419020,8.22380457,1990.7,1990.3,4.85780078]
[1772581419220,8.22380457,1990.7,1990.4,4.85780078]
[1772581419618,7.91826811,1990.7,1990.5,4.85712452]
[1772581420220,7.91419505,1990.6,1990.4,16.42986573]
[1772581420420,0.00407306,1990.7,1990.4,20.21559438]
[1772581420620,0.00407306,1990.7,1990.4,16.42986573]
[1772581420823,0.00407306,1990.7,1990.5,3.78572865]
[1772581421426,7.91800962,1990.7,1990.5,3.78572865]
[1772581421626,7.91393656,1990.6,1990.5,3.78572865]
[1772581421926,3.17655101,1990.9,1990.5,3.78572865]
[1772581422120,2.75198135,1990.8,1990.5,2.88614195]
[1772581422922,2.75761718,1990.8,1990.5,6.6718706]
[1772581423423,2.75198135,1991.1,1990.8,2.88614195]
[1772581423623,6.95760552,1991.2,1990.8,2.88614195]
[1772581423820,6.95760552,1991.2,1990.9,2.88614195]
[1772581424019,6.95760552,1991.4,1991.0,2.88614195]
[1772581424225,2.75198135,1991.3,1991.0,2.88614195]
[1772581424420,2.75753124,1991.3,1991.1,3.78572865]
[1772581424720,0.00554989,1991.3,1991.1,6.6718706]
[1772581424920,0.00554989,1991.3,1991.2,3.78572865]
[1772581425321,2.75198135,1991.4,1991.2,3.78572865]
[1772581425527,2.75198135,1991.5,1991.2,6.6718706]
[1772581425728,2.75198135,1991.5,1991.2,14.45888316]
[1772581426526,2.7555914,1991.5,1991.2,18.24461181]
[1772581426932,0.00361005,1991.5,1991.3,2.88614195]
[1772581427133,0.00361005,1991.5,1991.3,5.3333389]
[1772581427733,2.7555914,1991.5,1991.3,2.44719695]
[1772581428336,2.7555914,1991.5,1991.2,14.45888316]
[1772581428635,2.7555914,1991.5,1991.3,2.44719695]
[1772581429131,2.7555914,1991.5,1991.4,1.75119695]
[1772581429331,2.7555914,1991.5,1991.2,14.45888316]
[1772581429728,2.7555914,1991.5,1991.3,1.75119695]
[1772581430335,6.94084011,1991.5,1991.4,1.75119695]
[1772581430536,6.94084011,1991.5,1991.2,14.45888316]
[1772581430937,4.86241699,1991.4,1991.2,11.57274121]
[1772581431139,4.86241699,1991.4,1991.3,1.75119695]
[1772581432038,4.86241699,1991.4,1991.3,1.22750426]
[1772581432240,4.86241699,1991.4,1991.3,1.03513492]
[1772581433338,4.86241699,1991.4,1991.0,0.00566272]
[1772581433534,4.86241699,1991.2,1991.0,11.57840393]
[1772581433936,7.51953261,1991.1,1991.0,11.57840393]
[1772581434332,7.51953261,1991.1,1989.2,4.87709367]
[1772581434333,2.37824955,1990.2,1989.2,4.87709367]
[1772581434538,6.92532525,1989.6,1988.9,4.87709367]
[1772581434737,10.25270857,1989.5,1988.9,4.87709367]
[1772581434942,10.31248491,1989.4,1988.9,4.87709367]
[1772581435138,7.51953261,1989.3,1988.9,4.87709367]
[1772581435343,7.52495581,1989.3,1988.9,4.88117013]
[1772581435540,12.3873728,1989.3,1988.9,1.04916687]
[1772581435743,7.51953261,1989.2,1988.9,1.04916687]
[1772581437246,12.3819496,1989.2,1988.9,0.00407646]
[1772581437546,7.51953261,1989.1,1988.9,0.00407646]
[1772581437744,4.86241699,1989.2,1988.9,0.00407646]
[1772581437945,7.73440424,1989.1,1988.9,0.00407646]
[1772581438837,7.73440424,1989.1,1988.9,4.88117013]
[1772581439245,4.86241699,1989.2,1988.9,4.88117013]
[1772581439643,0.0054232,1989.3,1988.9,4.88117013]
[1772581439644,4.86784019,1989.3,1988.9,4.88117013]
[1772581444250,4.86241699,1989.7,1988.9,4.88117013]
[1772581444449,12.56576793,1989.6,1988.9,4.88117013]
[1772581444748,7.70335094,1989.5,1988.9,4.88117013]
[1772581445148,9.05456628,1989.8,1988.9,4.88117013]
[1772581445350,0.0041328,1989.5,1988.9,4.88117013]
[1772581448158,4.86241699,1989.3,1988.6,4.87709367]
[1772581448547,4.86241699,1989.1,1988.6,4.87709367]
[1772581449249,4.86241699,1989.1,1988.6,4.88361492]
[1772581449952,4.86241699,1989.1,1988.6,0.00109805]
[1772581450147,4.86241699,1989.1,1988.6,4.87819172]
[1772581451056,4.86241699,1989.3,1988.6,4.87819172]
[1772581451255,12.37779388,1989.2,1988.6,4.87819172]
[1772581451551,4.86241699,1988.8,1987.5,4.87709367]
[1772581451752,4.86241699,1988.6,1987.5,4.87709367]
[1772581452451,4.86241699,1988.6,1987.5,4.88161467]
[1772581460966,5.55340063,1988.9,1988.0,5.131321]
[1772581461266,13.08349072,1988.8,1988.1,5.131321]
[1772581461466,13.08349072,1988.7,1988.1,5.131321]
[1772581461669,5.55340063,1988.7,1988.1,5.131321]
[1772581462262,13.10429172,1988.6,1988.1,5.131321]
[1772581462462,5.55340063,1988.6,1988.1,5.131321]
[1772581462664,5.55340063,1988.8,1988.1,5.131321]
[1772581462865,7.55177358,1988.7,1988.1,5.131321]
[1772581463062,7.55177358,1988.6,1988.1,5.131321]
[1772581463267,9.74554992,1988.8,1988.1,5.131321]
[1772581463268,7.55177358,1988.5,1988.1,5.131321]
[1772581463565,5.55340063,1988.8,1988.1,5.131321]
[1772581463769,7.56719708,1988.7,1988.1,5.131321]
[1772581463970,5.55340063,1989.0,1988.1,5.131321]
[1772581464271,9.74554992,1988.9,1988.1,5.131321]
[1772581464675,8.12480173,1989.3,1987.9,5.382821]
[1772581464676,5.55340063,1988.7,1987.9,5.382821]
[1772581464870,9.74554992,1988.8,1987.9,5.382821]
[1772581465270,5.55340063,1988.7,1987.9,5.382821]
[1772581469771,9.74554992,1988.9,1987.9,5.382821]
[1772581470077,5.55340063,1988.9,1987.9,5.382821]
[1772581471175,5.55340063,1988.9,1988.3,5.131321]
[1772581471375,5.55340063,1988.9,1988.4,5.131321]
[1772581472073,4.19214929,1989.0,1988.4,5.131321]
[1772581472377,5.55340063,1989.1,1988.4,5.131321]
[1772581472571,9.74554992,1989.2,1988.6,5.131321]
[1772581472768,5.55340063,1989.3,1988.8,5.131321]
[1772581472972,5.55340063,1989.3,1988.4,5.131321]
[1772581473575,5.55340063,1989.2,1988.4,5.131321]
[1772581475874,12.69987105,1989.1,1988.4,5.131321]
[1772581476073,7.14647042,1989.0,1988.4,5.131321]
[1772581477178,5.55340063,1989.1,1988.4,5.131321]
[1772581477479,7.08698949,1989.0,1988.4,5.131321]
[1772581477680,5.55340063,1989.1,1988.4,5.131321]
[1772581477974,5.55340063,1989.1,1988.6,5.131321]
[1772581485780,5.55340063,1989.2,1988.6,5.131321]
[1772581486077,7.02370827,1989.1,1988.6,5.131321]
[1772581487383,12.5771089,1989.1,1988.6,5.131321]
[1772581487685,5.55340063,1989.0,1988.3,5.131321]
[1772581487988,2.73218689,1989.1,1988.3,5.131321]
[1772581487989,5.65077721,1988.8,1988.3,5.131321]
[1772581490879,5.65077721,1988.6,1987.9,5.45299503]
[1772581491185,5.65077721,1988.4,1987.9,5.45299503]
[1772581491383,5.65077721,1988.4,1988.0,5.70446503]
[1772581491586,5.65077721,1988.4,1988.0,0.25147]
[1772581491884,5.65077721,1988.4,1987.8,5.45299503]
[1772581492086,5.65077721,1988.4,1987.9,0.25147]
[1772581492284,5.65077721,1988.4,1987.8,5.45299503]
[1772581493282,5.65077721,1988.4,1987.8,0.25147]
[1772581494982,5.65077721,1988.4,1987.8,5.70446503]
[1772581495681,5.65077721,1988.4,1987.9,5.45299503]
[1772581497385,5.65077721,1988.4,1987.9,0.25147]
[1772581500487,5.65077721,1988.4,1987.9,5.70446503]
[1772581500681,5.65077721,1988.7,1987.9,0.25147]
[1772581500884,5.65077721,1988.5,1987.9,5.70446503]
[1772581501086,5.65077721,1988.8,1987.9,5.70446503]
[1772581501280,7.01944559,1988.7,1988.1,5.45299503]
[1772581501485,5.65077721,1989.0,1988.1,5.45299503]
[1772581501686,5.65077721,1988.8,1988.3,5.45299503]
[1772581502286,5.65077721,1988.8,1988.4,5.70446503]
[1772581502487,5.65077721,1988.8,1988.4,5.45299503]
[1772581502988,5.65077721,1988.8,1988.1,5.45299503]
[1772581503288,5.65077721,1988.8,1988.1,5.70446503]
[1772581504188,5.65077721,1989.2,1988.1,5.70446503]
[1772581504387,5.65077721,1989.0,1988.1,5.70446503]
[1772581504586,12.544937,1988.9,1988.1,5.70446503]
[1772581504788,5.65077721,1988.9,1988.1,5.70446503]
[1772581507190,5.65077721,1989.2,1988.3,5.45299503]
[1772581507386,5.65077721,1989.0,1988.5,5.45299503]
[1772581507891,4.45648506,1989.4,1988.5,5.45299503]
[1772581507892,5.65077721,1989.4,1988.7,5.45299503]
[1772581508087,5.65077721,1989.2,1988.8,9.495]
[1772581508391,5.65077721,1989.2,1988.9,5.45299503]
[1772581508593,5.65077721,1989.2,1988.9,0.0055513]
[1772581508886,5.65491001,1989.5,1989.1,5.45299503]
[1772581509293,5.65491001,1989.5,1989.0,5.70446503]
[1772581510487,5.65491001,1989.5,1989.0,0.25147]
[1772581511586,5.65077721,1988.9,1987.3,5.45299503]
[1772581511787,5.65077721,1988.7,1987.6,5.45299503]
[1772581512092,5.65077721,1988.5,1987.6,5.45299503]
[1772581512487,5.65077721,1988.3,1987.5,5.45299503]
[1772581512695,5.65077721,1988.1,1987.5,0.00600876]
[1772581512990,5.65077721,1987.9,1987.5,0.00600876]
[1772581514994,0.00621769,1988.1,1987.5,5.45900379]
[1772581515393,5.6569949,1988.1,1987.5,5.45900379]
[1772581518500,0.00621769,1988.1,1987.5,5.45900379]
[1772581518799,5.51448197,1988.4,1987.7,5.55795169]
[1772581518998,5.51448197,1988.2,1987.7,5.55795169]
[1772581519900,5.39100097,1988.6,1987.7,5.55795169]
[1772581520090,12.27183405,1988.5,1987.7,5.55795169]
[1772581520294,5.39100097,1988.5,1987.7,5.55795169]
[1772581520992,0.00638643,1988.5,1987.9,5.5188274]
[1772581521498,5.39100097,1988.8,1988.1,5.5188274]
[1772581521697,5.39100097,1989.2,1988.2,5.5188274]
[1772581521897,16.28235195,1989.4,1988.2,5.5188274]
[1772581521898,5.39100097,1989.0,1988.2,5.5188274]
[1772581522700,5.39537633,1989.0,1988.2,5.5188274]
[1772581529908,5.39100097,1988.8,1988.2,5.5188274]
[1772581530108,5.39537633,1989.0,1988.2,5.5188274]
[1772581530313,0.00437536,1989.0,1988.4,5.5188274]
[1772581530511,5.39100097,1989.2,1988.4,5.5188274]
[1772581531207,5.39100097,1989.2,1987.6,5.5188274]
[1772581531402,9.59616603,1988.7,1987.6,5.5188274]
[1772581531604,5.39100097,1988.5,1987.6,5.5188274]
[1772581531804,5.39100097,1988.3,1987.6,5.5188274]
[1772581532812,5.39100097,1988.1,1987.5,0.00600876]
[1772581534814,5.39100097,1988.1,1987.5,5.52483616]
[1772581535014,5.39100097,1988.1,1987.5,0.00600876]
[1772581535217,5.39100097,1988.1,1987.3,5.5188274]
[1772581536312,5.39100097,1988.1,1987.3,5.52463982]
[1772581538018,4.20516506,1988.4,1987.3,0.00581242]
[1772581538019,5.39100097,1987.9,1987.3,0.00581242]
[1772581539215,5.39100097,1987.9,1986.8,5.5188274]
[1772581539413,5.39100097,1987.7,1986.8,5.5188274]
[1772581539612,5.39100097,1987.5,1986.6,5.5188274]
[1772581540212,5.39614078,1987.5,1986.6,5.52270993]
[1772581540412,5.39100097,1987.3,1986.6,5.52270993]
[1772581540608,5.39100097,1987.3,1986.6,0.00388253]
[1772581541614,5.39100097,1987.3,1986.6,5.52270993]
[1772581545713,5.39614078,1987.5,1986.6,5.52270993]
[1772581545914,0.00513981,1987.5,1986.8,5.5188274]
[1772581548621,5.12010044,1987.5,1986.8,5.5188274]
[1772581556630,5.12010044,1987.5,1986.6,0.00388253]
[1772581556631,5.12010044,1987.5,1986.6,5.16186918]
[1772581556923,5.11496063,1986.8,1986.0,5.15798665]
[1772581557128,5.11496063,1986.8,1985.0,6.19627]
[1772581557129,5.11496063,1986.5,1985.3,5.15798665]
[1772581557328,5.11496063,1986.3,1985.3,5.15798665]
[1772581557527,5.11496063,1986.1,1985.3,5.15798665]
[1772581557930,5.12072047,1986.1,1985.3,5.16350573]
[1772581560125,5.12072047,1986.1,1985.5,5.15798665]
[1772581560330,0.00575984,1986.1,1985.5,5.15798665]
[1772581561430,5.11496063,1986.4,1985.5,5.15798665]
[1772581561925,5.11496063,1986.8,1985.7,5.15798665]
[1772581562125,5.11496063,1986.6,1985.7,5.15798665]
[1772581562334,5.11897075,1986.6,1985.7,5.15798665]
[1772581562633,5.11496063,1986.4,1985.7,5.15798665]
[1772581564334,5.11496063,1986.4,1985.5,5.15798665]
[1772581566737,5.11496063,1986.2,1985.5,5.15798665]
[1772581572340,5.11496063,1986.5,1985.5,5.15798665]
[1772581572536,5.11496063,1986.5,1985.7,5.15798665]
[1772581575836,5.11897075,1986.6,1985.9,5.15798665]
[1772581577238,5.11496063,1986.7,1986.1,5.15798665]
[1772581577644,5.11496063,1987.0,1986.1,5.15798665]
[1772581577838,5.11496063,1986.9,1986.3,5.15798665]
[1772581578240,5.11938815,1986.9,1986.3,5.15798665]
[1772581579642,5.03200698,1986.7,1986.2,5.14794213]
[1772581582144,5.0364345,1986.9,1986.2,5.14794213]
[1772581584349,0.00442752,1986.9,1986.2,5.14794213]
[1772581585740,0.00442752,1986.9,1986.5,0.25168]
[1772581585945,5.03200698,1987.2,1986.6,4.89622213]
[1772581586139,6.75728615,1987.1,1986.6,4.89622213]
[1772581586439,5.03200698,1987.3,1986.8,4.89622213]
[1772581586840,5.03654329,1987.3,1986.8,4.9009591]
[1772581594852,12.135047,1987.9,1986.8,4.9009591]
[1772581594853,5.03200698,1987.5,1986.8,4.9009591]
[1772581595053,5.03200698,1987.5,1987.0,4.89622213]
[1772581595649,5.03200698,1987.9,1987.0,4.89622213]
[1772581595850,5.03689662,1987.9,1987.0,4.89622213]
[1772581598456,5.03200698,1987.7,1987.0,4.89622213]
[1772581604462,5.03200698,1987.7,1987.2,4.89622213]
[1772581615276,6.60650131,1987.6,1987.2,4.89622213]
[1772581616379,11.47210716,1987.6,1987.2,4.89622213]
[1772581616678,4.86560585,1987.6,1987.2,4.89622213]
[1772581617279,6.60839384,1987.5,1987.2,4.89622213]
[1772581619179,4.86560585,1987.6,1987.2,4.89622213]
[1772581621686,4.86560585,1987.8,1987.2,4.89622213]
[1772581621879,11.41573316,1987.7,1987.2,4.89622213]
[1772581622080,6.55012731,1987.6,1987.2,4.89622213]
[1772581622282,4.86560585,1987.4,1987.1,5.08138277]
[1772581622482,4.86560585,1987.4,1986.9,4.82977277]
[1772581623079,4.86560585,1987.2,1986.8,0.00473697]
[1772581623279,4.86560585,1987.2,1986.8,4.83450974]
[1772581627293,4.86560585,1987.6,1986.8,4.83450974]